Cogmind - Beta 17 @@@ ROGUE MODE // 2026.08.22 @ 14:56:00 Player: OBLIQUE Result: Destroyed by P-70 Sage with Tesla Rifle Performance ------------- Evolutions (5) 2500 Regions Visited (5) 1000 Robots Destroyed (44) 220 Value Destroyed (1183) 1183 Prototype IDs (8) 160 Alien Tech Used (0) 0 Bonus (2800) 2800 TOTAL SCORE: 7863 Bonus ------- Delivered SUBCON Basin 2000 Registered with UFD 300 Met Optimus in HQ 500 Cogmind --------- Core Integrity 0/1000 Matter 176/300 Energy 19/100 System Corruption 9% Temperature Cool (0) Movement Core (250) Ox4 Location -5/Factory Parts ------- > --- POWER (1) -------- (None) > --- PROPULSION (4) --- (None) > --- UTILITY (10) ----- Medium Storage Unit Surveybot 17 Chip Improved Trap Extractor (0/6) > --- WEAPON (2) ------- (None) > --- INVENTORY (10) --- Large Storage Unit Armor Integrity Analyzer A0-MCA's Component Scanner Dynamic Insulation System System Restoration Module Mapping Drone Bay (3/3) Improved Datajack Improved Plasma Cutter DRS Beacon (Ready) Peak State ------------ > --- POWER ------------ Light Deuterium Engine > --- PROPULSION ------- Improved Titanium Leg Flexi-carbon Leg Enhanced Flexi-carbon Leg Wheel > --- UTILITY ---------- Large Storage Unit Advanced Sensor Array Improved Signal Interpreter Improved Terrain Scanner Surveybot 17 Chip Hacking Suite > --- WEAPON ----------- Improved Datajack Heavy Mace > --- INVENTORY -------- Improved Treads Improved Titanium Leg Improved Titanium Leg Gravmag System Medium Storage Unit Improved Sensor Array Armor Integrity Analyzer A0-MCA's Component Scanner Dynamic Insulation System System Restoration Module Improved Trap Extractor Mapping Drone Bay Improved Plasma Cutter Mace DRS Beacon [Rating: 54] Favorites ----------- Power Ion Engine Engine Ion Engine Propulsion Improved Treads Treads Improved Treads Leg Improved Titanium Leg Wheel Wheel Hover Unit Gravmag System Utility Large Storage Unit Device Improved Terrain Scanner Storage Large Storage Unit Processor Tech Extrapolator Hackware Hacking Suite Weapon Subdweller Machine Gun Energy Cannon Subdweller Beam Cannon Ballistic Gun Subdweller Machine Gun Launcher Grenade Launcher Impact Weapon Heavy Mace Special Melee Weapon Improved Datajack Build | -11 -10 -10 -7 -7 -5 ------- Run | Yrd Mat Sub Rec Scr Fac Slots Evolved 10 | . . . . . 10 Power . | . . . . . . Propulsion 2 | . . . . . 2 Utility 8 | . . . . . 8 Weapon . | . . . . . . Parts Attached 40 | 7 6 5 1 9 12 Power 5 | 1 1 1 . 2 . Engine 5 | 1 1 1 . 2 . Core . | . . . . . . Reactor . | . . . . . . Propulsion 15 | 2 3 1 . 1 8 Treads 6 | 2 3 1 . . . Leg 7 | . . . . . 7 Wheel 1 | . . . . 1 . Hover 1 | . . . . . 1 Flight . | . . . . . . Utility 11 | 2 1 . 1 3 4 Device 4 | 1 . . . 2 1 Storage 3 | 1 1 . . 1 . Processor 3 | . . . 1 . 2 Hackware 1 | . . . . . 1 Protection . | . . . . . . Artifact . | . . . . . . Weapon 9 | 2 1 3 . 3 . Energy Gun . | . . . . . . Energy Cannon 2 | . 1 1 . . . Ballistic Gun 3 | 2 . 1 . . . Ballistic Cannon . | . . . . . . Launcher 1 | . . 1 . . . Special Weapon . | . . . . . . Impact Weapon 2 | . . . . 2 . Slashing Weapon . | . . . . . . Piercing Weapon . | . . . . . . Special Melee Weapon 1 | . . . . 1 . Unidentified Prototypes 1 | . . . . . 1 Parts Lost 21 | . 3 2 . . 16 Power 2 | . 1 . . . 1 Propulsion 10 | . 1 1 . . 8 Utility 5 | . . . . . 5 Weapon 4 | . 1 1 . . 2 Highest Loss Streak 10 | . 3 2 . . 10 To Critical Strikes . | . . . . . . Average Backups 7 | . 6 10 2 8 12 Power . | . 1 . . . . Propulsion 1 | . 3 4 . . 3 Utility 4 | . . 2 1 6 7 Weapon 1 | . 1 2 . 1 . Tool/Special . | . . . . . . Unused Backups 23 | . 1 11 . 5 6 Power 1 | . . 1 . . . Propulsion 3 | . . 3 . . . Utility 15 | . 1 5 . 4 5 Weapon 3 | . . 2 . 1 . Tool/Special 1 | . . . . . 1 Average Slot Usage (%) 91 | . 99 99 100 87 59 Engine 12 | . 13 14 14 12 4 Treads 25 | . 27 28 28 25 2 Wheel 1 | . . . . 1 4 Device 6 | . 14 14 7 1 8 Storage 13 | . 14 14 14 13 5 Processor 6 | . . . 6 11 6 Energy Cannon 8 | . 6 14 14 7 . Ballistic Gun 10 | . 20 12 14 7 . Impact Weapon 1 | . . . . 3 5 Special Melee Weapon 1 | . . . . 2 4 Peak Build Rating 54 | 9 12 30 30 22 54 Average Rating 18 | 5 10 14 24 17 39 On Entrance 15 | . 9 12 30 18 22 Avg Prop Armor Cover (%) 23 | . . . . 24 19 Naked Turns 20 | . . . . 20 . Heaviest Build 41 | 14 30 38 38 41 31 Greatest Support 68 | 40 46 46 43 43 68 Greatest Overweight (x) 4 | . . . . 4 4 Average Overweight (x) . | . . . . . 2 Largest Inventory Capacity 15 | 8 15 15 15 15 15 Average Capacity 13 | 7 9 15 15 14 14 Most Carried 15 | 1 12 15 15 15 15 Average Carried 10 | . 6 12 10 9 13 Final Capacity 15 | 8 15 15 15 15 10 Final Carried 15 | 1 12 15 10 14 9 Class Distribution -------------------- 95% | Mutant 4% | Assassin Dominant Class ---------------- Mutant | -10/Materials Mutant | -10/Subcaves Mutant | -7/Recycling Mutant | -7/Scraptown Assassin | -5/Factory Resources | -11 -10 -10 -7 -7 -5 ----------- Run | Yrd Mat Sub Rec Scr Fac Matter Collected 855 | 283 299 147 10 78 38 Remotely . | . . . . . . Salvage Created 1475 | 47 798 322 70 . 238 Parts 79 | 4 46 21 . . 8 Haulers Intercepted 1 | . 1 . . . . Recyclers Shooed 1 | . . . 1 . . Parts Field Recycled . | . . . . . . Retrieved Matter . | . . . . . . Parts Self-Destructed 14 | . . 14 . . . Prevented . | . . . . . . Parts Restored . | . . . . . . Kills | -11 -10 -10 -7 -7 -5 ------- Run | Yrd Mat Sub Rec Scr Fac Combat Hostiles Destroyed 32 | . 19 9 . . 4 Melee 3 | . . . . . 3 Guns 12 | . 11 1 . . . Cannons 14 | . 8 6 . . . AOE 2 | . . 2 . . . Classes Destroyed 12 | 1 6 3 1 . 1 Builder 1 | . 1 . . . . Tunneler 4 | 3 1 . . . . Hauler 1 | . 1 . . . . Recycler 2 | . . . 1 . 1 Operator 2 | . 2 . . . . Turret 1 | . . 1 . . . Watcher 1 | . 1 . . . . Swarmer 9 | . 6 . . . 3 Grunt 14 | . 13 1 . . . Sentry 1 | . . 1 . . . Hunter 1 | . . . . . 1 Subdweller 7 | . . 7 . . . Best Kill Streak 10 | 3 10 2 1 . 4 Combat Bots Only 6 | . 6 2 . . 2 Max Kills in Single Turn 2 | 1 2 1 1 . 1 Gunslinging . | . . . . . . Exploded 1 | . . 1 . . . Melee 1 | . . . . . 1 Uniques/NPCs Destroyed . | . . . . . . Combat | -11 -10 -10 -7 -7 -5 -------- Run | Yrd Mat Sub Rec Scr Fac Hostile Shots Fired 354 | . 97 41 . . 216 Missed 86 | . 30 14 . . 42 Hits 268 | . 67 27 . . 174 Projectile 268 | . 67 27 . . 174 Critical Strikes 2 | . . . . . 2 Damage Taken 3964 | . 720 439 . . 2805 Core 1179 | . 111 64 . . 1004 Absorbed by Shields . | . . . . . . Regen/Repaired (Parts) 190 | . 75 . . 115 . Core Remaining (%) 65 | 100 . . . 30 . Volleys Fired 98 | 6 70 22 . . . Largest 2 | 2 2 2 . . . Hottest 110 | 40 80 110 . . . Shots Fired 195 | 12 140 43 . . . Gun 135 | 12 107 16 . . . Cannon 55 | . 33 22 . . . Launcher 5 | . . 5 . . . Special . | . . . . . . Kinetic 135 | 12 107 16 . . . Thermal 55 | . 33 22 . . . Explosive 5 | . . 5 . . . Electromagnetic . | . . . . . . Robot Hit Streak 17 | 6 17 6 . . . Robot Miss Streak 3 | 1 3 2 . . . Penetration Max . | . . . . . . Secondary Targets 2 | . 2 . . . . Max Gunslinging Chain 1 | . 1 . . . . Shots Hit Robots 142 | 8 96 23 . . 15 Core Hits 58 | 3 38 13 . . 4 Critical Kills 2 | . 2 . . . . Critical Parts Destroyed 1 | . . . . . 1 Critical Strikes 3 | . 2 . . . 1 Destroy 2 | . 2 . . . . Smash 1 | . . . . . 1 Melee Attacks 41 | . . . . . 41 Impact 41 | . . . . . 41 Slashing . | . . . . . . Piercing . | . . . . . . Sneak Attacks 1 | . . . . . 1 Combat Hostiles . | . . . . . . Follow-up Attacks 2 | . . . . . 2 Damage Inflicted 2682 | 91 1330 616 37 . 608 Guns 968 | 91 808 69 . . . Cannons 786 | . 515 271 . . . Explosions 276 | . . 276 . . . Melee 608 | . . . . . 608 Ramming 44 | . 7 . 37 . . Kinetic 968 | 91 808 69 . . . Thermal 786 | . 515 271 . . . Explosive 276 | . . 276 . . . Electromagnetic . | . . . . . . Impact 608 | . . . . . 608 Slashing . | . . . . . . Piercing . | . . . . . . Highest Corruption 8 | . . . . . 8 Average Corruption 4 | . . . . . 4 Corruption Purged . | . . . . . . Corruption Blocked . | . . . . . . Overload Shots . | . . . . . . Overflow Damage 48 | . 10 . . . 38 Projectiles 10 | . 10 . . . . Explosions . | . . . . . . Melee 38 | . . . . . 38 Knockbacks 1 | . . . . . 1 Impact 1 | . . . . . 1 Kinetic . | . . . . . . Secondary . | . . . . . . Self-Inflicted Damage 10 | . . 10 . . . Shots 1 | . . 1 . . . Rammed 4 | . 1 . 3 . . Targets Rammed 5 | . 1 . 4 . . Kicked . | . . . . . . Crushed 1 | . . . 1 . . Highest Temperature 201 | . 201 9 . . . Average Temperature 58 | . 61 3 . . . Received Heat Transfer 474 | . 333 141 . . . Siege Activations . | . . . . . . Martial Activations . | . . . . . . Shielding Activations . | . . . . . . Robots Disrupted . | . . . . . . Combat Hostiles . | . . . . . . Robots Corrupted 1 | . . . . . 1 Combat Hostiles 1 | . . . . . 1 Parts Fried 1 | . . . . . 1 Impact Corruptions 3 | . . . . . 3 Robots Melted . | . . . . . . Combat Hostiles . | . . . . . . Parts Melted . | . . . . . . Heat Transferred 1517 | . 1036 481 . . . Parts Sabotaged . | . . . . . . Parts Stolen . | . . . . . . Parts Stripped . | . . . . . . Power Chain Reactions . | . . . . . . Alert | -11 -10 -10 -7 -7 -5 ------- Run | Yrd Mat Sub Rec Scr Fac Maximum Alert Level 1 | . 1 . . . . Low Security (%) 92 | 100 77 . 100 . 100 Level 1 7 | . 22 . . . . Level 2 . | . . . . . . Level 3 . | . . . . . . Level 4 . | . . . . . . Level 5 . | . . . . . . High Security . | . . . . . . Max Security . | . . . . . . Peak Influence 238 | 10 238 . 6 . 50 Initial . | . . . . . . Average 37 | 1 110 . . . 7 Influence Increases 873 | 15 554 60 16 . 228 Destroy 0b10 Robot/C 520 | . 380 60 . . 80 Destroy 0b10 Robot/NC 55 | 15 30 . 5 . 5 Destroy Leader 94 | . 74 . . . 20 Successful Hack 91 | . 37 . 11 . 43 Disable Machine 30 | . . . . . 30 Destroy Structure 23 | . 3 . . . 20 Lose Combat Pursuer 60 | . 30 . . . 30 Influence Decreases 869 | 15 404 210 16 . 224 Entered New Map 73 | . . 73 . . . Time Decay 663 | 15 374 137 16 . 121 Lost Part 133 | . 30 . . . 103 Squads Dispatched 5 | . 4 . . . 1 Investigation 2 | . 2 . . . . Extermination 1 | . . . . . 1 Reinforcement 2 | . 2 . . . . Assault . | . . . . . . Garrison . | . . . . . . Intercept . | . . . . . . Searches Triggered . | . . . . . . Construction Impeded . | . . . . . . Haulers Reinforced . | . . . . . . Active Scanning Responses . | . . . . . . Cargo Convoy Interrupts . | . . . . . . Stealth | -11 -10 -10 -7 -7 -5 --------- Run | Yrd Mat Sub Rec Scr Fac Distress Signals 3 | . 2 . . . 1 Communications Jammed . | . . . . . . Distress Signals . | . . . . . . Times Spotted 53 | . 28 12 . . 13 Peak Tracking Total 8 | . 4 2 . . 8 Tactical Retreats 3 | . 2 . . . 1 Traps | -11 -10 -10 -7 -7 -5 ------- Run | Yrd Mat Sub Rec Scr Fac Traps Triggered 3 | . 2 . . . 1 Indirectly . | . . . . . . Trap Hack Attempts . | . . . . . . Triggered . | . . . . . . Disarmed 2 | . 2 . . . . Reprogrammed . | . . . . . . Reused . | . . . . . . Traps Extracted . | . . . . . . Installed 1 | . . . . . 1 Triggered . | . . . . . . Most Traps Carried 3 | . . . . 3 3 Machines | -11 -10 -10 -7 -7 -5 ---------- Run | Yrd Mat Sub Rec Scr Fac Machines Disabled 3 | . . 1 . . 2 Max in Single Turn 1 | . . 1 . . 1 Machines Repaired . | . . . . . . Machines Dismantled . | . . . . . . Machines Sabotaged . | . . . . . . Overloaded Fab Kills . | . . . . . . Hacking | -11 -10 -10 -7 -7 -5 --------- Run | Yrd Mat Sub Rec Scr Fac Machines Accessed 23 | . 7 2 7 3 4 Terminals 13 | . 5 . 5 . 3 Fabricators . | . . . . . . Repair Stations 1 | . 1 . . . . Recycling Units 4 | . 1 . 2 . 1 Scanalyzers . | . . . . . . Garrison Access . | . . . . . . Total Hacks 77 | . 24 2 14 25 12 Successful 55 | . 16 2 6 25 6 Failed 22 | . 8 . 8 . 6 Catastrophic 7 | . 3 . 2 . 2 Database Lockouts . | . . . . . . Manual 41 | . 21 . 9 . 11 Terminals 37 | . 18 . 9 . 10 Fabricators . | . . . . . . Repair Stations 2 | . 2 . . . . Recycling Units 11 | . 4 . 5 . 2 Scanalyzers . | . . . . . . Garrison Access . | . . . . . . Terminal Hacks 36 | . 7 2 2 25 . Record 17 | . . . . 17 . Robot Analysis 11 | . 4 . . 7 . Open Door 1 | . . 1 . . . Terminal Index 1 | . 1 . . . . Locate Traps 1 | . 1 . . . . Disarm Traps 1 | . 1 . . . . Zone Layout 2 | . . . 2 . . Proto ID Catalog 1 | . . . . 1 . Release Object 1 | . . 1 . . . Fabricator Hacks . | . . . . . . Repair Station Hacks 2 | . 2 . . . . Scan Component 1 | . 1 . . . . Repair 1 | . 1 . . . . Recycling Unit Hacks . | . . . . . . Scanalyzer . | . . . . . . Garrison Access Hacks . | . . . . . . Unauthorized Hacks 17 | . 7 . 4 . 6 Terminals 10 | . 4 . 2 . 4 Assimilate 3 | . 2 . . . 1 Botnet 7 | . 2 . 2 . 3 Fabricators . | . . . . . . Repair Stations . | . . . . . . Recycling Units 7 | . 3 . 2 . 2 Monitor 1 | . 1 . . . . Reject 2 | . . . 1 . 1 Recyclers 1 | . 1 . . . . Mask 3 | . 1 . 1 . 1 Scanalyzers . | . . . . . . Garrison Access . | . . . . . . Data Cores Recovered . | . . . . . . Used . | . . . . . . Hacking Detections 18 | . 7 . 7 . 4 Full Trace Events . | . . . . . . Feedback Events . | . . . . . . Feedback Blocked . | . . . . . . Robot Schematics Acquired . | . . . . . . Robots Built . | . . . . . . Authchips . | . . . . . . Time . | . . . . . . Total Robot Build Rating . | . . . . . . Part Schematics Acquired 11 | . . . 2 9 . Parts Built . | . . . . . . Authchips . | . . . . . . Time . | . . . . . . Total Part Build Rating . | . . . . . . Part Studies Acquired . | . . . . . . Parts Repaired 1 | . 1 . . . . Time 26 | . 26 . . . . Parts Recycled . | . . . . . . Recycled Matter . | . . . . . . Retrieved Matter . | . . . . . . Retrieved Components . | . . . . . . Parts Scanalyzed . | . . . . . . Part Schematics Acquired . | . . . . . . Parts Damaged . | . . . . . . Bothacking | -11 -10 -10 -7 -7 -5 ------------ Run | Yrd Mat Sub Rec Scr Fac Used RIF Installer . | . . . . . . Robots Hacked . | . . . . . . Non-combat . | . . . . . . Combat . | . . . . . . Robot Hacks Applied . | . . . . . . Relay Couplers Released . | . . . . . . Fabnet Peak Effective % . | . . . . . . Robots Rewired . | . . . . . . Allies Hacked . | . . . . . . Hacks Repelled . | . . . . . . Allies | -11 -10 -10 -7 -7 -5 -------- Run | Yrd Mat Sub Rec Scr Fac Total Allies . | . . . . . . Largest Group . | . . . . . . Highest-Rated Group . | . . . . . . Highest-Rated Ally . | . . . . . . Initial UFD Resources 39 | . . . . . 39 Total Orders . | . . . . . . Ally Attacks . | . . . . . . Total Damage . | . . . . . . Kills . | . . . . . . Allies Corrupted . | . . . . . . Allies Melted . | . . . . . . Intel | -11 -10 -10 -7 -7 -5 ------- Run | Yrd Mat Sub Rec Scr Fac Active Infowar (turns) 4034 | 32 1128 1164 885 344 481 Sensors 825 | . . . . 344 481 Terrain 3642 | 32 1128 1164 885 . 433 Robot Analysis Total 11 | . 4 . . 7 . Derelict Logs Recovered 2 | . . . . 2 . Drone Launches . | . . . . . . Drone Recoveries . | . . . . . . Exploration | -11 -10 -10 -7 -7 -5 ------------- Run | Yrd Mat Sub Rec Scr Fac Turns Passed 8868 | 129 1128 1164 1586 4302 559 Spaces Moved 5122 | 64 502 615 788 2841 312 Core 349 | 2 . . . 344 3 Treads 3950 | 62 502 615 788 1975 8 Legs 3 | . . . . . 3 Wheels 820 | . . . . 522 298 Hover . | . . . . . . Flight . | . . . . . . Fastest Speed 50 | 50 160 160 160 50 110 Average Speed 145 | 156 160 160 160 137 126 Slowest Speed 250 | 160 160 160 160 160 250 Overloaded Moves . | . . . . . . Propulsion Burnouts . | . . . . . . Robots Hopped . | . . . . . . Potential Cave-ins . | . . . . . . Cave-ins Triggered . | . . . . . . Exploration Rate (%) 52 | 4 78 43 87 92 12 Regions Visited 5 Branch Regions 3 Pre-discovered Areas 3 | . . . . 3 . Known Exits Taken . | . . . . . . Unknown Exits Taken 5 | 1 1 1 1 1 . Scrap Searched 9 | . . . . 9 . Spaces Dug 10 | . . . . . 10 Terrain Destroyed 34 | . . 24 . . 10 Melee 10 | . . . . . 10 Projectile 1 | . . 1 . . . AOE 23 | . . 23 . . . Terrain Rammed . | . . . . . . Walls Destroyed . | . . . . . . Machines Disabled . | . . . . . . Actions | -11 -10 -10 -7 -7 -5 --------- Run | Yrd Mat Sub Rec Scr Fac Total 6277 | 79 693 759 1111 3230 405 Wait 860 | 2 99 95 310 334 20 Move 5117 | 63 501 614 787 2840 312 Hop . | . . . . . . Pick Up 52 | 1 12 5 8 22 4 Fast Attach 25 | 7 2 . . 10 6 Attach 18 | . 2 2 . 5 9 Detach 8 | . . . . 7 1 Swap 12 | . 4 5 1 . 2 Drop 34 | . 2 16 1 12 3 Fire 98 | 6 70 22 . . . Melee 39 | . . . . . 39 Ram . | . . . . . . Kick . | . . . . . . Crush 5 | . 1 . 4 . . Escape Stasis 8 | . . . . . 8 Rewire . | . . . . . . Trap 1 | . . . . . 1 Miscellaneous . | . . . . . . Route ------- -11/Scrapyard -10/Materials (discovered 6 exits: [*Mat x3] / [*Min x2] / *Sub) -10/Subcaves -7/Recycling -7/Scraptown (discovered 2 exits: *Fac x2) -5/Factory (discovered 8 exits: Fac x4 / Upp x2 / Ext x2) History --------- Turn | Location | Event 2 | -11/Scrapyard | Met Revision 17 43 | -11/Scrapyard | Discovered new exit (range 16) 130 | -11/Scrapyard | Entered Materials 263 | -10/Materials | Discovered new exit (range 15) 302 | -10/Materials | Build established: Mutant 396 | -10/Materials | Discovered new exit (range 5) 599 | -10/Materials | Discovered new exit (range 3) 800 | -10/Materials | Discovered new exit (range 3) 850 | -10/Materials | Discovered new exit (range 11) 944 | -10/Materials | Lost 3 parts (1p1n1w) 1149 | -10/Materials | Repaired Beam Cannon 1234 | -10/Materials | Discovered new exit (range 7) 1258 | -10/Materials | Entered Subcaves 1259 | -10/Subcaves | Approached by a straggling Scientist 1484 | -10/Subcaves | Core integrity fell below 50% 1797 | -10/Subcaves | Shifting Twisted Machinery released Scrap Shield 1972 | -10/Subcaves | Discovered new exit (range 9) 2298 | -10/Subcaves | Found SUBCON Basin 2422 | -10/Subcaves | Entered Recycling 3150 | -7/Recycling | Scanned before Scraplab entrance 3172 | -7/Recycling | Entered Scraplab 3271 | -7/Recycling | Discovered new exit (range 6) 3471 | -7/Recycling | Tech Extrapolator generated special schematic: Deep Structural Scanner 4008 | -7/Recycling | Entered Scraptown 4472 | -7/Scraptown | Discovered new exit (range 13) 4537 | -7/Scraptown | Scanned Subdweller tech in exchange for log data 4542 | -7/Scraptown | Learned 8 Factory zone layouts 4672 | -7/Scraptown | Visited SPCMW 4777 | -7/Scraptown | Visited CR-KLE's Repair Center 4799 | -7/Scraptown | Visited Bundlers 4814 | -7/Scraptown | Tech Extrapolator generated special schematic: Machine Rigger 5075 | -7/Scraptown | Visited Symbiants 5140 | -7/Scraptown | Visited Cyclists 5164 | -7/Scraptown | Visited Shadow of the Wyrm 5239 | -7/Scraptown | Visited Comm Corps 5618 | -7/Scraptown | Visited UFD Registry 5618 | -7/Scraptown | Registered with UFD as "Megalauncher" 5691 | -7/Scraptown | Visited A0-MCA Data Center 5717 | -7/Scraptown | Visited Analyses Database 5935 | -7/Scraptown | Visited Scrap Suit Storage 5986 | -7/Scraptown | Visited Derelict Rescue Squad 6029 | -7/Scraptown | Visited Science Guys 6080 | -7/Scraptown | Visited Chapter 10 6111 | -7/Scraptown | Visited Science Testing Area 6143 | -7/Scraptown | Visited Cartography Club 6212 | -7/Scraptown | Found Surveybot 17 Chip 6231 | -7/Scraptown | Learned location of Zion (-6) 6231 | -7/Scraptown | Learned location of Archives (-5) 6231 | -7/Scraptown | Learned 8 Factory zone layouts 6231 | -7/Scraptown | Learned 20 Factory zone layouts 6231 | -7/Scraptown | Learned 24 Factory zone layouts 6231 | -7/Scraptown | Learned 4 Mines zone layouts 6231 | -7/Scraptown | Learned 16 Lower Caves zone layouts 6231 | -7/Scraptown | Learned 20 Upper Caves zone layouts 6231 | -7/Scraptown | Learned 24 Upper Caves zone layouts 6231 | -7/Scraptown | Learned 4 Hub_04(d) zone layouts 6231 | -7/Scraptown | Learned location of 1 exit from Research 6231 | -7/Scraptown | Learned location of 3 exits from Upper Caves 6231 | -7/Scraptown | Learned location of 2 exits from Proximity Caves 6271 | -7/Scraptown | Entered Cyclist Reading Room 6387 | -7/Scraptown | Found DRS Beacon 7395 | -7/Scraptown | Released all parts (6) 7977 | -7/Scraptown | CR-KLE repaired 6 parts 8055 | -7/Scraptown | Given a C rating by A0-MCA 8057 | -7/Scraptown | Found A0-MCA's Component Scanner 8187 | -7/Scraptown | Discovered new exit (range 3) 8253 | -7/Scraptown | Met Optimus 8253 | -7/Scraptown | Accepted into 0bPrime 8310 | -7/Scraptown | Entered Factory 8310 | -5/Factory | Evolved 10 slots: Propulsion x2, Utility x8 8311 | -5/Factory | Identified exit to Factory 8311 | -5/Factory | Identified exit to Extension 8311 | -5/Factory | Identified exit to Upper Caves 8616 | -5/Factory | Build established: Assassin 8834 | -5/Factory | Lost 10 parts (1p4n4u1w) 8843 | -5/Factory | Core integrity fell below 50% 8862 | -5/Factory | Core integrity fell below 20% 8869 | -5/Factory | Destroyed by P-70 Sage with Tesla Rifle Last Messages --------------- 08853_ Slug penetrates Wall. 08854_ H-66 Slayer destroyed. 08854_ K-01 Serf collects debris. 08854_ Hvy. Mace destroyed. 08857_ K-01 Serf collects debris. 08858_ Slug penetrates P-70 Sage. 08860_ Gravmag System destroyed. 08861_ Penetrated by Slug. 08861_ K-01 Serf collects debris. 08862_ Imp. Trap Extractor dropped Vortex Trap. 08862_ Installed Vortex Trap. 08863_ Imp. Trap Extractor dropped Vortex Trap. 08864_ Penetrated by Slug. 08866_ K-01 Serf collects debris. 08866_ Imp. Sensor Array destroyed. 08867_ Penetrated by Slug. 08867_ Slug penetrates Wall. 08869_ P-70 Sage resets P-70 Sage, system corruption cleaned. Map ----- +----------------------------------------------------+ | #?????????????????????????# # | | #?????????????????????????# """ # | | #????????????###??????????# """ # " | | #######????##### ############ """ # " | | #????# # + " | | #????# "" / # | | #????# """ # #### ## | | #????# S" # #### ## | | #????# """ # #### #### | | # #????# """ # ####+###### #### | | # #????# # # ^ !## #### | | # #????# """"""""" # # ## #### | | # #????# # + """""" # ### | | # #????######+########### # """""" + " | | # #?????????# ###?####### # """""" # ### | | # #?????????# #?##??##### # """""" ####### | | # #####?????# ####?###### # ####### | | # ##T ####### ########### # ####### | | # # = ####### | | # ################ | | + t ################ | | # ################ | | # % ################ | | ####+########### ######h######################## | | # #?????# # [%!kp % ################## | | # #?????# # @^p ##############?### | | # #?????# # """ " ################?# | | # """ #?????# # """"" %#############?#### | | # """ #?????# # """""" ###############?## | | # "S #?????# # """"" #?#############?# | | # """ #?????# # ###########?#?### | | # "" #?????# # """""" ########?####?#?# | | # #?????# # """""" ##?###########??# | | ##########?????# # """""" ##########??#???# | | #????????# # """""" #??####?##??????# | | #????????# # ##??#???????????# | | #????????# #########+####???#???????????# | | """ #????????# # #???????????????# | | """ #????????# + #???????????????# | | """ #?######## # #???????????????# | | #+####### # #???????????????# | | # #???????????????# | | #+############???????????????# | | #???#######???#### ########## | | #???# ##### | | ###### """ ##### | | #????# """ | | #????# """ ##### | | #????# #???# ##### | | #????# """ #???### ###???# ######### | +----------------------------------------------------+ Best States ------------- Heat Dissipation 40 Energy Generation 16 Energy Capacity 290 Matter Stores 300 Matter Capacity 300 Sight Range 16 Robot Scan Range 16 Terrain Scan Range 16 Terrain Scan Density 1210 Evasion (%) 50 Recoil Reduction 2 Offensive Hacking 10 Trap Extractor Capacity 6 Item Schematics ----------------- Deep Structural Scanner | -7/Recycling | Extrapolated Mak. Terrain Scan Processor | -7/Recycling | Extrapolated Spk. Treads | -7/Scraptown | Extrapolated Mak. Coolant Network | -7/Scraptown | Extrapolated Mak. Leg | -7/Scraptown | Extrapolated Mak. Power Source | -7/Scraptown | Extrapolated Machine Rigger | -7/Scraptown | Extrapolated Mak. Light Armor Plating | -7/Scraptown | Extrapolated Multitool | -7/Scraptown | Extrapolated Lgt. Humpback | -7/Scraptown | Extrapolated Mak. Targeting Computer | -7/Scraptown | Extrapolated Robot Schematics ------------------ None Fabricated ------------ Nothing Repaired ---------- Beam Cannon | 25% | -10/Materials Studied --------- None Alien Tech Used ----------------- None Achievements -------------- None Challenges ------------ None Game ------ Seed OpticalMagneticRailcannon Manual? 0 Play Time 00:45:14 Cumulative 251.6 hours Start 2026.08.22 @ 00:51:52 End 2026.08.22 @ 14:56:00 Sessions 2 Manual Loads 0 Difficulty Rogue Special Mode None Game No. 143 Rogue 143 Adventurer 0 Explorer 0 Win Type - Total 5 Types 5/0/0/0/0/0/0/0/0/0 Lore% 81 Gallery% 69 Achievement% 60 Wizard Run 0 Options --------- Layout 1 ASCII 0 Keyboard 0 Movement Numpad Keybinds 0 Fullscreen 1 Font 24/Smallcaps Map View 50x35 Zoom Use 0% Tactical HUD 1 Map Filters NONE Filters NONE Steam 1 RUN: 0218a8c8-4b2d-47a5-959d-0ded2654fdcc